Cogmind - Beta 10.2 @@@ ROGUE MODE // 2020.11.05 @ 14:11:59 // Halloween2020/ForbiddenLore Player: Vine Result: Self-destructed Performance ------------- Evolutions (1) 500 Regions Visited (2) 400 Robots Destroyed (16) 80 Value Destroyed (393) 393 Prototype IDs (0) 0 Alien Tech Used (0) 0 Bonus (0) 0 TOTAL SCORE: 1373 Bonus ------- None Cogmind --------- Core Integrity 292/400 Matter 298/300 Energy 100/100 System Corruption 0% Temperature Cool (0) Movement Rolling (90) Location -9/Materials Parts ------- > --- POWER (1) -------- (None) > --- PROPULSION (3) --- Armored Wheel > --- UTILITY (3) ------ Medium Storage Unit Terrain Scan Processor > --- WEAPON (2) ------- Light Assault Rifle > --- INVENTORY (8) ---- Improved Ion Engine Heavy Ion Engine Heavy Ion Engine Heavy Ion Engine Heavy Ion Engine Compact Wheel Beam Rifle Peak State ------------ > --- POWER ------------ Improved Ion Engine > --- PROPULSION ------- Compact Wheel Armored Wheel Armored Wheel > --- UTILITY ---------- Medium Storage Unit Terrain Scanner Terrain Scan Processor > --- WEAPON ----------- Particle Gun Light Assault Rifle > --- INVENTORY -------- Improved Ion Engine Heavy Ion Engine Heavy Ion Engine Compact Wheel Beam Rifle [Rating: 15] Favorites ----------- Power Ion Engine Engine Ion Engine Propulsion Compact Wheel Wheel Compact Wheel Utility Terrain Scan Processor Device Terrain Scanner Storage Medium Storage Unit Processor Terrain Scan Processor Weapon Light Assault Rifle Energy Gun Particle Gun Ballistic Gun Light Assault Rifle Build | -11 -10 -9 ------- Run | Scr Mat Mat Slots Evolved 2 | . . 2 Power . | . . . Propulsion 1 | . . 1 Utility 1 | . . 1 Weapon . | . . . Parts Attached 24 | 3 11 10 Power 4 | 1 2 1 Engine 4 | 1 2 1 Core . | . . . Reactor . | . . . Propulsion 8 | 2 2 4 Treads . | . . . Leg . | . . . Wheel 8 | 2 2 4 Hover . | . . . Flight . | . . . Utility 4 | . 2 2 Device 2 | . 1 1 Storage 1 | . . 1 Processor 1 | . 1 . Hackware . | . . . Protection . | . . . Artifact . | . . . Weapon 8 | . 5 3 Energy Gun 5 | . 3 2 Energy Cannon . | . . . Ballistic Gun 3 | . 2 1 Ballistic Cannon . | . . . Launcher . | . . . Special Weapon . | . . . Impact Weapon . | . . . Slashing Weapon . | . . . Piercing Weapon . | . . . Special Melee Weapon . | . . . Unidentified Prototypes . | . . . Parts Lost 9 | . 3 6 Power 2 | . 1 1 Propulsion 2 | . . 2 Utility 2 | . . 2 Weapon 3 | . 2 1 Highest Loss Streak 4 | . 2 4 Average Slot Usage (%) 91 | . 89 93 Engine 12 | . 13 10 Wheel 30 | . 28 32 Device 12 | . 9 14 Storage 1 | . . 2 Processor 10 | . 9 11 Energy Gun 12 | . 13 12 Ballistic Gun 11 | . 14 8 Naked Turns . | . . . Heaviest Build 20 | 3 11 20 Greatest Support 42 | 26 32 42 Greatest Overweight (x) . | . . . Average Overweight (x) . | . . . Largest Inventory Capacity 8 | 4 4 8 Average Capacity 4 | 4 4 4 Most Carried 7 | 4 4 7 Average Carried 3 | 3 2 3 Final Capacity 8 | 4 4 8 Final Carried 7 | 4 4 7 Class Distribution -------------------- 46% | Scavenger-Mutant 35% | Mutant 18% | Scavenger-Skirmisher Dominant Class ---------------- Mutant | -10/Materials Scavenger-Mutant | -9/Materials Resources | -11 -10 -9 ----------- Run | Scr Mat Mat Matter Collected 491 | 230 145 116 Remotely . | . . . Salvage Created 553 | . 170 383 Parts 46 | . 12 34 Haulers Intercepted 1 | . . 1 Recyclers Shooed . | . . . Parts Field Recycled . | . . . Retrieved Matter . | . . . Parts Self-Destructed . | . . . Prevented . | . . . Kills | -11 -10 -9 ------- Run | Scr Mat Mat Combat Hostiles Destroyed 12 | . 2 10 Guns 12 | . 2 10 Classes Destroyed 6 | . 3 3 Worker 2 | . 2 . Hauler 1 | . . 1 Watcher 1 | . 1 . Swarmer 3 | . . 3 Grunt 8 | . 2 6 Sentry 1 | . . 1 Best Kill Streak 4 | . 2 4 Combat Bots Only 4 | . 1 4 Max Kills in Single Turn 1 | . 1 1 Gunslinging . | . . . Exploded . | . . . Melee . | . . . Uniques/NPCs Destroyed . | . . . Combat | -11 -10 -9 -------- Run | Scr Mat Mat Damage Taken 1067 | . 362 705 Core 185 | . 77 108 Absorbed by Shields . | . . . Core Remaining (%) 84 | 100 69 . Volleys Fired 80 | . 43 37 Largest 2 | . 2 2 Hottest 105 | . 105 85 Shots Fired 144 | . 75 69 Gun 144 | . 75 69 Cannon . | . . . Launcher . | . . . Special . | . . . Kinetic 83 | . 55 28 Thermal 25 | . 4 21 Explosive . | . . . Electromagnetic 36 | . 16 20 Robot Hit Streak 12 | . 12 9 Robot Miss Streak 3 | . 3 3 Penetration Max . | . . . Secondary Targets . | . . . Shots Hit Robots 100 | . 58 42 Core Hits 33 | . 13 20 Critical Hits . | . . . Critical Kills . | . . . Critical Parts Destroyed . | . . . Melee Attacks . | . . . Impact . | . . . Slashing . | . . . Piercing . | . . . Sneak Attacks . | . . . Combat Hostiles . | . . . Follow-up Attacks . | . . . Damage Inflicted 982 | . 525 457 Guns 981 | . 524 457 Cannons . | . . . Explosions . | . . . Melee . | . . . Ramming 1 | . 1 . Kinetic 416 | . 286 130 Thermal 235 | . 49 186 Explosive . | . . . Electromagnetic 330 | . 189 141 Impact . | . . . Slashing . | . . . Piercing . | . . . Highest Corruption . | . . . Average Corruption . | . . . Corruption Purged . | . . . Overload Shots . | . . . Overflow Damage . | . . . Projectiles . | . . . Explosions . | . . . Melee . | . . . Knockbacks . | . . . Impact . | . . . Kinetic . | . . . Secondary . | . . . Self-Inflicted Damage . | . . . Shots . | . . . Rammed 1 | . 1 . Targets Rammed 1 | . 1 . Kicked . | . . . Crushed . | . . . Highest Temperature 152 | . 95 152 Average Temperature 37 | . 37 37 Received Heat Transfer 369 | . 204 165 Siege Activations . | . . . Robots Corrupted . | . . . Combat Hostiles . | . . . Parts Fried 2 | . 1 1 Impact Corruptions . | . . . Robots Melted . | . . . Combat Hostiles . | . . . Parts Melted 1 | . . 1 Heat Transferred 555 | . 111 444 Parts Sabotaged . | . . . Parts Stolen . | . . . Parts Stripped . | . . . Power Chain Reactions . | . . . Missiles Intercepted . | . . . Alert | -11 -10 -9 ------- Run | Scr Mat Mat Peak Influence 281 | . 82 281 Initial 34 | . . 34 Average 110 | . 39 180 Maximum Alert Level 1 | . . 1 Low Security (%) 77 | 100 100 57 Level 1 22 | . . 42 Level 2 . | . . . Level 3 . | . . . Level 4 . | . . . Level 5 . | . . . High Security . | . . . Max Security . | . . . Squads Dispatched 1 | . 1 . Investigation . | . . . Extermination . | . . . Reinforcement 1 | . 1 . Assault . | . . . Garrison . | . . . Intercept . | . . . Construction Impeded . | . . . Haulers Reinforced . | . . . Stealth | -11 -10 -9 --------- Run | Scr Mat Mat Distress Signals 2 | . 1 1 Communications Jammed . | . . . Distress Signals . | . . . Times Spotted 23 | . 6 17 Peak Tracking Total 3 | . 3 3 Tactical Retreats 1 | . 1 . Traps | -11 -10 -9 ------- Run | Scr Mat Mat Traps Triggered . | . . . Indirectly . | . . . Trap Hack Attempts . | . . . Triggered . | . . . Disarmed . | . . . Reprogrammed . | . . . Reused . | . . . Traps Extracted . | . . . Installed . | . . . Triggered . | . . . Machines | -11 -10 -9 ---------- Run | Scr Mat Mat Machines Disabled . | . . . Max in Single Turn . | . . . Machines Sabotaged . | . . . Garrisons Compromised . | . . . Overloaded Fab Kills . | . . . Fab Network Shutdowns . | . . . Hacking | -11 -10 -9 --------- Run | Scr Mat Mat Machines Accessed 2 | . 2 . Terminals . | . . . Fabricators . | . . . Repair Stations . | . . . Recycling Units 2 | . 2 . Scanalyzers . | . . . Garrison Access . | . . . Total Hacks 2 | . 2 . Successful 2 | . 2 . Failed . | . . . Catastrophic . | . . . Database Lockouts . | . . . Manual . | . . . Terminals . | . . . Fabricators . | . . . Repair Stations . | . . . Recycling Units 2 | . 2 . Scanalyzers . | . . . Garrison Access . | . . . Terminal Hacks . | . . . Fabricator Hacks . | . . . Repair Station Hacks . | . . . Recycling Unit Hacks 2 | . 2 . Report Inventory 2 | . 2 . Scanalyzer . | . . . Garrison Access Hacks . | . . . Unauthorized Hacks . | . . . Terminals . | . . . Fabricators . | . . . Repair Stations . | . . . Recycling Units . | . . . Scanalyzers . | . . . Garrison Access . | . . . Data Cores Recovered . | . . . Used . | . . . Hacking Detections . | . . . Full Trace Events . | . . . Feedback Events . | . . . Feedback Blocked . | . . . Robot Schematics Acquired . | . . . Robots Built . | . . . Matter . | . . . Time . | . . . Total Robot Build Rating . | . . . Part Schematics Acquired . | . . . Parts Built . | . . . Matter . | . . . Time . | . . . Total Part Build Rating . | . . . Parts Repaired . | . . . Time . | . . . Parts Recycled . | . . . Recycled Matter . | . . . Retrieved Matter . | . . . Retrieved Components . | . . . Parts Scanalyzed . | . . . Part Schematics Acquired . | . . . Parts Damaged . | . . . Bothacking | -11 -10 -9 ------------ Run | Scr Mat Mat Used RIF Installer . | . . . Robots Hacked . | . . . Non-combat . | . . . Combat . | . . . Robot Hacks Applied . | . . . Relay Couplers Released . | . . . Robots Rewired . | . . . Allies Hacked . | . . . Hacks Repelled . | . . . Allies | -11 -10 -9 -------- Run | Scr Mat Mat Total Allies . | . . . Largest Group . | . . . Highest-Rated Group . | . . . Highest-Rated Ally . | . . . Total Orders . | . . . Ally Attacks . | . . . Total Damage . | . . . Kills . | . . . Allies Corrupted . | . . . Allies Melted . | . . . Intel | -11 -10 -9 ------- Run | Scr Mat Mat Robot Analysis Total . | . . . Derelict Logs Recovered . | . . . Drone Launches . | . . . Drone Recoveries . | . . . Exploration | -11 -10 -9 ------------- Run | Scr Mat Mat Turns Passed 807 | 45 343 419 Spaces Moved 468 | 42 200 226 Core 7 | 7 . . Treads . | . . . Legs . | . . . Wheels 461 | 35 200 226 Hover . | . . . Flight . | . . . Fastest Speed 50 | 50 90 86 Average Speed 91 | 83 94 90 Slowest Speed 100 | 90 100 93 Overloaded Moves . | . . . Propulsion Burnouts . | . . . Robots Hopped . | . . . Cave-ins Triggered . | . . . Exploration Rate (%) 17 | 4 28 20 Regions Visited 2 Branch Regions . Pre-discovered Areas . | . . . Known Exits Taken . | . . . Unknown Exits Taken 2 | 1 1 . Scrap Searched . | . . . Spaces Dug . | . . . Terrain Destroyed . | . . . Melee . | . . . Projectile . | . . . AOE . | . . . Terrain Rammed . | . . . Walls Destroyed . | . . . Machines Disabled . | . . . Actions | -11 -10 -9 --------- Run | Scr Mat Mat Total 721 | 51 290 380 Wait 108 | . 20 88 Move 466 | 41 199 226 Hop . | . . . Pick Up 29 | 7 11 11 Fast Attach 1 | . . 1 Attach 15 | 3 7 5 Detach . | . . . Swap 8 | . 4 4 Drop 13 | . 5 8 Fire 80 | . 43 37 Melee . | . . . Ram 1 | . 1 . Kick . | . . . Crush . | . . . Escape Stasis . | . . . Rewire . | . . . Trap . | . . . Miscellaneous . | . . . Route ------- -11/Scrapyard -10/Materials -9/Materials History --------- Turn | Location | Event 18 | -11/Scrapyard | Discovered new exit (range 16) 46 | -11/Scrapyard | Entered Materials 372 | -10/Materials | Discovered new exit (range 10) 389 | -10/Materials | Entered another Materials area 389 | -9/Materials | Evolved 2 slots: Propulsion x1, Utility x1 808 | -9/Materials | Self-destructed Last Messages --------------- 00621_ G-34 Mercenary destroyed. 00622_ Acquired 1 matter. 00630_ G-34 Mercenary destroyed. 00633_ Wheel destroyed. 00634_ Acquired 10 matter. 00636_ Acquired 1 matter. 00641_ G-34 Mercenary destroyed. 00642_ Acquired 1 matter. 00677_ R-06 Scavenger collects Aluminum Leg. 00680_ R-06 Scavenger collects Sml. Laser. 00723_ A-02 Transporter destroyed. 00727_ Acquired Med. Storage Unit. 00730_ Acquired Prototype Engine. 00736_ Acquired 14 matter. 00749_ Acquired Prototype Engine. 00792_ Imp. Ion Engine destroyed. 00803_ Terrain Scanner destroyed. 00803_ Particle Gun destroyed. 00803_ Com. Wheel destroyed. 00805_ Arm. Wheel severed. Map ----- +----------------------------------------------------+ | ?????????????????????????????????? | | ?????????????????????????????????? | | ?????????????????????????????????? | | ?????????????????????????????????? | | ?????????????????????????????????? | | ?????????????????????????????????? | | ?????????????????????????????????? | | ?????????????????????????????????? | | ?????????????????????????????????? | | ???##+#??????????????????????????? | | ???# ????????????????? ??????? | | ???# ###?????????????? #?????? | | ??## #??????#????????? #?????? | | #??# # ???????????#### #?????? | | #??# #? ?"""?????? +?????? | | ??## #??""??"?#???# #?????? | | ??## # "??"??????? #?????? | | ?#?# #? "???"?#???? #????? | | ??##^ # ???"??????? ######? | | #?## # ??"?"?#?#?#? ^ ?? | | #??# /??????? ??? ?? ??? | | ?#?# #? ????? ###???# ^ ? ?? | | #?## ###########????? ##???? | | #?## ## #????? #???? | | ??# # """ ####### #? ??? | | ??# #@""" # # #????? | | ??# l """ # + ## ?""" | | ?## # # # #? "??" | | #?# # """ # % # ##????? | | ??## ## """ # # ## ?"?? | | #?## ## """ # # ## "??? | | #??# ## # # ####### | | ?#?# ##############+## # | | #### # ##### # " | | ?### # #?### # "" | | #?## # #?### # "" | | #### # ! ##### + "" | | #### + [%##### # "" | | #### # ==##### # "" | | #### # %%+ %% ! # " | | ##?# # #####* # "" | | ?### # *##### # " | | ##?# ############## # | | #### # ####+## ####### | | ?### #[=] ## # #?##??? | | #?## #= ] ## # #?????# | | #?##! +%=] """ ## # #####?# | | ?### %%#=[ """ ## # #?##??? | | ?### % #*] """ ## # ? ? | | #?## # [ ########+###??#?? | +----------------------------------------------------+ Best States ------------- Heat Dissipation 28 Energy Generation 12 Energy Capacity 265 Matter Stores 300 Matter Capacity 300 Sight Range 16 Robot Scan Range 10 Terrain Scan Range 14 Terrain Scan Density 85 Evasion (%) 42 Item Schematics ----------------- None Robot Schematics ------------------ None Fabricated ------------ Nothing Alien Tech Used ----------------- None Achievements -------------- None Challenges ------------ None Game ------ Seed FieldHoverAnalyzer Manual? 0 Play Time 00:11:48 Cumulative 17.1 hours Start 2020.11.05 @ 14:02:08 End 2020.11.05 @ 14:11:59 Sessions 1 Manual Loads 0 Difficulty Rogue Special Mode Halloween2020/ForbiddenLore Game No. 20 Rogue 20 Adventurer 0 Explorer 0 Win Type - Total 0 Types 0/0/0/0/0/0/0/0/0 Lore% 13 Gallery% 23 Achievement% 18 Wizard Run 0 Options --------- ASCII 0 Keyboard 0 Movement Mouse Keybinds 0 Fullscreen 1 Font 24/Smallcaps Map View 76x50 Tactical HUD 1 Map Filters NONE Filters NONE Steam 1 RUN: 46490f69-856f-4f96-9f90-a5bd08c296b9